[Event "*** Titled Tuesday Blitz"]
[Site "Chess.com"]
[Date "2020.10.20"]
[Round "7"]
[White "Playgood28"]
[Black "teacher4chess"]
[Result "0-1"]
[WhiteElo "2278"]
[BlackElo "2063"]
[TimeControl "180+1"]
[EndTime "11:20:58 PDT"]
[Termination "teacher4chess won on time"]

1. d4 {[%clk 0:03:00.9]} 1... d5 {[%clk 0:02:58.5]} 2. c4 {[%clk 0:03:00.5]}
2... e6 {[%clk 0:02:59]} 3. Nc3 {[%clk 0:03:00.2]} 3... Be7 {[%clk 0:02:59]} 4.
Nf3 {[%clk 0:02:58.9]} 4... Nf6 {[%clk 0:02:59]} 5. Bg5 {[%clk 0:02:57.7]} 5...
Ne4 {[%clk 0:02:46.1]} 6. Bxe7 {[%clk 0:02:54.4]} 6... Qxe7 {[%clk 0:02:40.1]}
7. cxd5 {[%clk 0:02:48.6]} 7... Nxc3 {[%clk 0:02:38.8]} 8. bxc3 {[%clk
0:02:47.3]} 8... exd5 {[%clk 0:02:38.8]} 9. e3 {[%clk 0:02:46.3]} 9... O-O
{[%clk 0:02:29.6]} 10. Be2 {[%clk 0:02:45.3]} 10... c6 {[%clk 0:02:17.7]} 11.
O-O {[%clk 0:02:43.8]} 11... Nd7 {[%clk 0:02:17.3]} 12. c4 {[%clk 0:02:43.1]}
12... dxc4 {[%clk 0:02:06.1]} 13. Bxc4 {[%clk 0:02:42.1]} 13... Nb6 {[%clk
0:02:06.2]} 14. Be2 {[%clk 0:02:40.1]} 14... Bf5 {[%clk 0:02:00.4]} 15. Qb3
{[%clk 0:02:33.6]} 15... Qe6 {[%clk 0:01:39.8]} 16. Qb2 {[%clk 0:02:22.7]} 16...
Rfd8 {[%clk 0:01:37.1]} 17. a4 {[%clk 0:02:20.6]} 17... Qe7 {[%clk 0:01:29.8]}
18. a5 {[%clk 0:02:09]} 18... Nd5 {[%clk 0:01:28.6]} 19. Rfc1 {[%clk 0:02:03.3]}
19... Rac8 {[%clk 0:01:25.9]} 20. h3 {[%clk 0:01:48.4]} 20... Be4 {[%clk
0:01:19.5]} 21. Nd2 {[%clk 0:01:39.4]} 21... Bg6 {[%clk 0:01:14.2]} 22. Nc4
{[%clk 0:01:28.5]} 22... Qb4 {[%clk 0:01:09.1]} 23. Qxb4 {[%clk 0:01:15]} 23...
Nxb4 {[%clk 0:01:08.3]} 24. Ne5 {[%clk 0:01:03.4]} 24... Be4 {[%clk 0:00:49.4]}
25. Ra3 {[%clk 0:00:54.3]} 25... f6 {[%clk 0:00:44.1]} 26. Nc4 {[%clk
0:00:44.2]} 26... Nd5 {[%clk 0:00:17.3]} 27. Rb3 {[%clk 0:00:38.7]} 27... Rc7
{[%clk 0:00:16.6]} 28. Nd2 {[%clk 0:00:36.1]} 28... Bg6 {[%clk 0:00:15.2]} 29.
Bf3 {[%clk 0:00:33.7]} 29... Bf7 {[%clk 0:00:14.3]} 30. Rb2 {[%clk 0:00:32.2]}
30... Rdd7 {[%clk 0:00:11.1]} 31. Ne4 {[%clk 0:00:31.6]} 31... b5 {[%clk
0:00:05.9]} 32. axb6 {[%clk 0:00:25.5]} 32... axb6 {[%clk 0:00:05.9]} 33. Nc3
{[%clk 0:00:19.3]} 33... b5 {[%clk 0:00:04.9]} 34. Nxd5 {[%clk 0:00:16.9]} 34...
Bxd5 {[%clk 0:00:04.9]} 35. Bxd5+ {[%clk 0:00:13.2]} 35... Rxd5 {[%clk
0:00:04.9]} 36. Rbc2 {[%clk 0:00:12.9]} 36... Rd6 {[%clk 0:00:04.8]} 37. Rc5
{[%clk 0:00:12.7]} 37... Kf7 {[%clk 0:00:04.2]} 38. Rxb5 {[%clk 0:00:12.2]}
38... Ke6 {[%clk 0:00:04.2]} 39. Rbc5 {[%clk 0:00:11.7]} 39... Kd7 {[%clk
0:00:03.5]} 40. Kf1 {[%clk 0:00:08]} 40... Ra7 {[%clk 0:00:02.2]} 41. R1c2
{[%clk 0:00:07.8]} 41... Ra1+ {[%clk 0:00:01.9]} 42. Ke2 {[%clk 0:00:08.1]}
42... Rg1 {[%clk 0:00:01.7]} 43. Kf3 {[%clk 0:00:08]} 43... Rf1 {[%clk
0:00:01.8]} 44. h4 {[%clk 0:00:07.4]} 44... g6 {[%clk 0:00:01.8]} 45. g3 {[%clk
0:00:06.9]} 45... Rh1 {[%clk 0:00:01.7]} 46. Ra5 {[%clk 0:00:06.2]} 46... Rf1
{[%clk 0:00:01.7]} 47. Ra7+ {[%clk 0:00:05.4]} 47... Ke6 {[%clk 0:00:02.1]} 48.
Rxh7 {[%clk 0:00:02.1]} 48... Kd5 {[%clk 0:00:02]} 49. Rh6 {[%clk 0:00:01.2]}
49... f5 {[%clk 0:00:01.6]} 0-1

[Event "*** Titled Tuesday Blitz"]
[Site "Chess.com"]
[Date "2020.10.20"]
[Round "7"]
[White "Skat2704"]
[Black "ChronicUnhappiness"]
[Result "1-0"]
[WhiteElo "2272"]
[BlackElo "2271"]
[TimeControl "180+1"]
[EndTime "11:20:58 PDT"]
[Termination "Skat2704 won by resignation"]

1. d4 {[%clk 0:03:00.2]} 1... d5 {[%clk 0:02:59.8]} 2. Nf3 {[%clk 0:02:59.3]}
2... Nf6 {[%clk 0:02:59.1]} 3. c4 {[%clk 0:02:57.6]} 3... e6 {[%clk 0:02:59]} 4.
Nc3 {[%clk 0:02:56.4]} 4... Bb4 {[%clk 0:02:57]} 5. Bg5 {[%clk 0:02:54.8]} 5...
h6 {[%clk 0:02:56.1]} 6. Bh4 {[%clk 0:02:54.5]} 6... g5 {[%clk 0:02:54.9]} 7.
Bg3 {[%clk 0:02:54.4]} 7... Ne4 {[%clk 0:02:55.2]} 8. Qc2 {[%clk 0:02:54.3]}
8... h5 {[%clk 0:02:52]} 9. h4 {[%clk 0:02:23.6]} 9... g4 {[%clk 0:02:50]} 10.
Ne5 {[%clk 0:02:21.1]} 10... Nxg3 {[%clk 0:02:25.8]} 11. fxg3 {[%clk 0:02:20.3]}
11... Nd7 {[%clk 0:02:26.4]} 12. Nxd7 {[%clk 0:02:12.7]} 12... Bxd7 {[%clk
0:02:24.7]} 13. e3 {[%clk 0:02:13.4]} 13... Bd6 {[%clk 0:02:21.1]} 14. Ne2
{[%clk 0:02:08.7]} 14... c5 {[%clk 0:01:56.6]} 15. cxd5 {[%clk 0:02:06]} 15...
exd5 {[%clk 0:01:55.4]} 16. Nf4 {[%clk 0:02:05.8]} 16... cxd4 {[%clk 0:01:32.5]}
17. exd4 {[%clk 0:01:55.4]} 17... Bxf4 {[%clk 0:01:31.3]} 18. gxf4 {[%clk
0:01:55]} 18... Qf6 {[%clk 0:01:31.3]} 19. Qd2 {[%clk 0:01:29.1]} 19... O-O
{[%clk 0:01:30.4]} 20. Be2 {[%clk 0:01:22.6]} 20... Rfe8 {[%clk 0:01:26.5]} 21.
O-O-O {[%clk 0:01:09.9]} 21... Re4 {[%clk 0:00:59]} 22. Rhf1 {[%clk 0:00:54.7]}
22... Rae8 {[%clk 0:00:55.6]} 23. Bd3 {[%clk 0:00:52.6]} 23... Re3 {[%clk
0:00:55]} 24. Rde1 {[%clk 0:00:35.4]} 24... Rxe1+ {[%clk 0:00:51]} 25. Rxe1
{[%clk 0:00:35.3]} 25... Rxe1+ {[%clk 0:00:51.6]} 26. Qxe1 {[%clk 0:00:35.4]}
26... Qxf4+ {[%clk 0:00:44.9]} 27. Kb1 {[%clk 0:00:32.2]} 27... Qxd4 {[%clk
0:00:30.7]} 28. Bc2 {[%clk 0:00:22.1]} 28... Qf6 {[%clk 0:00:29.9]} 29. a3
{[%clk 0:00:17.4]} 29... Bf5 {[%clk 0:00:28.6]} 30. Qf2 {[%clk 0:00:12.3]} 30...
Bxc2+ {[%clk 0:00:27.6]} 31. Qxc2 {[%clk 0:00:12.4]} 31... g3 {[%clk 0:00:20.2]}
32. Qd3 {[%clk 0:00:09.3]} 32... Qe5 {[%clk 0:00:17.4]} 33. Ka2 {[%clk 0:00:08]}
33... d4 {[%clk 0:00:17.7]} 34. Qd2 {[%clk 0:00:07]} 34... Kg7 {[%clk
0:00:17.3]} 35. a4 {[%clk 0:00:06.6]} 35... Qe3 {[%clk 0:00:17]} 36. Qb4 {[%clk
0:00:06.3]} 36... d3 {[%clk 0:00:16.7]} 37. Qb5 {[%clk 0:00:04.9]} 37... Qe6+
{[%clk 0:00:15.1]} 38. Kb1 {[%clk 0:00:04.2]} 38... Qe1+ {[%clk 0:00:14.2]} 39.
Ka2 {[%clk 0:00:03.9]} 39... Qe6+ {[%clk 0:00:13.3]} 40. Kb1 {[%clk 0:00:03.9]}
40... d2 {[%clk 0:00:12.3]} 41. Kc2 {[%clk 0:00:02.7]} 41... Qd6 {[%clk
0:00:06.1]} 42. Qg5+ {[%clk 0:00:02.2]} 42... Kf8 {[%clk 0:00:06.2]} 43. Qxh5
{[%clk 0:00:02.5]} 43... Qe6 {[%clk 0:00:01.6]} 44. Kxd2 {[%clk 0:00:01.9]}
44... Qd6+ {[%clk 0:00:01.8]} 45. Ke2 {[%clk 0:00:02.2]} 45... Ke7 {[%clk
0:00:02.2]} 46. Ke1 {[%clk 0:00:02.1]} 46... Qe5+ {[%clk 0:00:01.7]} 47. Qxe5+
{[%clk 0:00:01.1]} 47... Kf8 {[%clk 0:00:02]} 48. Qd6+ {[%clk 0:00:01.4]} 48...
Kg7 {[%clk 0:00:02.9]} 49. Qb8 {[%clk 0:00:02]} 49... Kg6 {[%clk 0:00:03.6]} 50.
Qxb7 {[%clk 0:00:02.6]} 50... f6 {[%clk 0:00:04.5]} 51. Qe4+ {[%clk 0:00:02.9]}
51... Kf7 {[%clk 0:00:04.5]} 52. Qf3 {[%clk 0:00:03.6]} 52... f5 {[%clk
0:00:05.4]} 53. Qxg3 {[%clk 0:00:04.2]} 53... Ke6 {[%clk 0:00:06.3]} 54. Qf3
{[%clk 0:00:04.7]} 54... Kf6 {[%clk 0:00:07.2]} 55. h5 {[%clk 0:00:05.3]} 55...
Ke5 {[%clk 0:00:08.1]} 56. h6 {[%clk 0:00:05.9]} 56... Kf6 {[%clk 0:00:09]} 57.
h7 {[%clk 0:00:06.5]} 57... Kg7 {[%clk 0:00:09.9]} 58. Qxf5 {[%clk 0:00:07]}
58... Kh8 {[%clk 0:00:10.8]} 59. Qd7 {[%clk 0:00:07.5]} 59... a5 {[%clk
0:00:11.7]} 60. Qc6 {[%clk 0:00:07.6]} 60... Kg7 {[%clk 0:00:11.4]} 61. Qb5
{[%clk 0:00:08.1]} 61... Kh8 {[%clk 0:00:12.3]} 62. Qxa5 {[%clk 0:00:08.5]} 1-0

[Event "*** Titled Tuesday Blitz"]
[Site "Chess.com"]
[Date "2020.10.20"]
[Round "7"]
[White "pedromartinez91"]
[Black "Fy_Rakotomaharo"]
[Result "0-1"]
[WhiteElo "2482"]
[BlackElo "2648"]
[TimeControl "180+1"]
[EndTime "11:21:00 PDT"]
[Termination "Fy_Rakotomaharo won on time"]

1. b3 {[%clk 0:03:00.9]} 1... e5 {[%clk 0:02:59.7]} 2. Bb2 {[%clk 0:03:00.9]}
2... Nc6 {[%clk 0:03:00.4]} 3. e3 {[%clk 0:03:01.3]} 3... g6 {[%clk 0:03:00.8]}
4. Nf3 {[%clk 0:02:56]} 4... Bg7 {[%clk 0:03:00.8]} 5. d4 {[%clk 0:02:56]} 5...
exd4 {[%clk 0:02:58.3]} 6. Nxd4 {[%clk 0:02:56.9]} 6... Nf6 {[%clk 0:02:54.6]}
7. c4 {[%clk 0:02:48.8]} 7... O-O {[%clk 0:02:54.1]} 8. Be2 {[%clk 0:02:48.3]}
8... Re8 {[%clk 0:02:45.7]} 9. O-O {[%clk 0:02:46.6]} 9... d6 {[%clk 0:02:36.8]}
10. Nd2 {[%clk 0:02:42.5]} 10... Bd7 {[%clk 0:02:32.8]} 11. Qc2 {[%clk
0:02:27.7]} 11... a5 {[%clk 0:02:28.6]} 12. Nb5 {[%clk 0:02:26]} 12... Nb4
{[%clk 0:02:17.4]} 13. Qc1 {[%clk 0:02:25.2]} 13... Bf5 {[%clk 0:02:14.4]} 14.
Re1 {[%clk 0:02:03]} 14... a4 {[%clk 0:02:00.6]} 15. Nd4 {[%clk 0:01:58.3]}
15... Bd3 {[%clk 0:01:57.9]} 16. a3 {[%clk 0:01:41.2]} 16... Bxe2 {[%clk
0:01:58.1]} 17. axb4 {[%clk 0:01:41.1]} 17... Bg4 {[%clk 0:01:58.2]} 18. bxa4
{[%clk 0:01:31.8]} 18... Bd7 {[%clk 0:01:51.9]} 19. a5 {[%clk 0:01:31]} 19... c5
{[%clk 0:01:52]} 20. bxc5 {[%clk 0:01:25.8]} 20... dxc5 {[%clk 0:01:52.2]} 21.
N4b3 {[%clk 0:01:26.1]} 21... Qc7 {[%clk 0:01:51.7]} 22. h3 {[%clk 0:01:10.1]}
22... Bc6 {[%clk 0:01:42.8]} 23. Bc3 {[%clk 0:00:59.2]} 23... Red8 {[%clk
0:01:36.1]} 24. Qb2 {[%clk 0:00:58]} 24... Qe7 {[%clk 0:01:24]} 25. e4 {[%clk
0:00:47.3]} 25... Rd3 {[%clk 0:01:21.6]} 26. e5 {[%clk 0:00:45.1]} 26... Nd7
{[%clk 0:01:18]} 27. Ne4 {[%clk 0:00:41.9]} 27... Qh4 {[%clk 0:00:32]} 28. Nbxc5
{[%clk 0:00:23.2]} 28... Nxc5 {[%clk 0:00:30.2]} 29. Nxc5 {[%clk 0:00:24.1]}
29... Rxh3 {[%clk 0:00:30.9]} 30. gxh3 {[%clk 0:00:21.7]} 30... Qxh3 {[%clk
0:00:24.6]} 31. Ne4 {[%clk 0:00:16.7]} 31... Qg4+ {[%clk 0:00:24.6]} 32. Ng3
{[%clk 0:00:09.3]} 32... Qf3 {[%clk 0:00:24.6]} 33. Kf1 {[%clk 0:00:09.6]} 33...
h5 {[%clk 0:00:16.7]} 34. Re3 {[%clk 0:00:09.4]} 34... Qg2+ {[%clk 0:00:15.8]}
35. Ke2 {[%clk 0:00:10]} 35... h4 {[%clk 0:00:15.2]} 36. Nf1 {[%clk 0:00:09.8]}
36... Rd8 {[%clk 0:00:12.7]} 37. e6 {[%clk 0:00:09.2]} 37... Bh6 {[%clk
0:00:10]} 38. exf7+ {[%clk 0:00:10.1]} 38... Kxf7 {[%clk 0:00:10.4]} 39. Bd2
{[%clk 0:00:04.7]} 39... Qg4+ {[%clk 0:00:10]} 40. Ke1 {[%clk 0:00:04.3]} 40...
Bxe3 {[%clk 0:00:10.2]} 41. Bxe3 {[%clk 0:00:04.9]} 41... h3 {[%clk 0:00:10]}
42. Qe5 {[%clk 0:00:03.9]} 42... Qe6 {[%clk 0:00:07.5]} 43. Qc7+ {[%clk
0:00:04.2]} 43... Rd7 {[%clk 0:00:07.4]} 44. Qf4+ {[%clk 0:00:04.9]} 44... Kg8
{[%clk 0:00:07.4]} 45. Qh6 {[%clk 0:00:05.4]} 45... Qf5 {[%clk 0:00:06.3]} 46.
Qg5 {[%clk 0:00:05.4]} 46... Qe6 {[%clk 0:00:06.1]} 47. Qg3 {[%clk 0:00:05.1]}
47... Be4 {[%clk 0:00:05.7]} 48. Rd1 {[%clk 0:00:05.4]} 48... Rxd1+ {[%clk
0:00:04.5]} 49. Kxd1 {[%clk 0:00:06.3]} 49... Qxc4 {[%clk 0:00:05.3]} 50. Nd2
{[%clk 0:00:06]} 50... Qa4+ {[%clk 0:00:05.6]} 51. Ke2 {[%clk 0:00:05.8]} 51...
Bf5 {[%clk 0:00:06.5]} 52. Qb8+ {[%clk 0:00:04.3]} 52... Kf7 {[%clk 0:00:07]}
53. Qc7+ {[%clk 0:00:04.4]} 53... Kf6 {[%clk 0:00:07.5]} 54. Qxb7 {[%clk
0:00:04.5]} 54... Qxa5 {[%clk 0:00:06.3]} 55. Qb6+ {[%clk 0:00:03.4]} 55... Qxb6
{[%clk 0:00:05.5]} 56. Bxb6 {[%clk 0:00:04.2]} 56... h2 {[%clk 0:00:06.4]} 57.
Bd4+ {[%clk 0:00:02.4]} 57... Kf7 {[%clk 0:00:05.9]} 58. Nf3 {[%clk 0:00:01.1]}
58... Bg4 {[%clk 0:00:06]} 0-1

[Event "*** Titled Tuesday Blitz"]
[Site "Chess.com"]
[Date "2020.10.20"]
[Round "7"]
[White "KaterynaLagno"]
[Black "Aleksey_Sorokin"]
[Result "1/2-1/2"]
[WhiteElo "2704"]
[BlackElo "2843"]
[TimeControl "180+1"]
[EndTime "11:21:07 PDT"]
[Termination "Game drawn - insufficient material"]

1. e4 {[%clk 0:03:00.9]} 1... c6 {[%clk 0:02:59.9]} 2. Nc3 {[%clk 0:02:59.9]}
2... d5 {[%clk 0:03:00.8]} 3. Nf3 {[%clk 0:03:00.3]} 3... dxe4 {[%clk
0:03:00.2]} 4. Nxe4 {[%clk 0:03:01.2]} 4... Nf6 {[%clk 0:03:00.7]} 5. Qe2 {[%clk
0:03:01.2]} 5... Nxe4 {[%clk 0:02:59.7]} 6. Qxe4 {[%clk 0:03:02.1]} 6... Qd5
{[%clk 0:03:00.1]} 7. Qf4 {[%clk 0:02:58]} 7... Qf5 {[%clk 0:02:57.9]} 8. Qxf5
{[%clk 0:02:54.4]} 8... Bxf5 {[%clk 0:02:57.3]} 9. d3 {[%clk 0:02:50.3]} 9...
Nd7 {[%clk 0:02:57.3]} 10. Be3 {[%clk 0:02:45.3]} 10... e5 {[%clk 0:02:56.6]}
11. O-O-O {[%clk 0:02:42.9]} 11... O-O-O {[%clk 0:02:56.7]} 12. d4 {[%clk
0:02:35.5]} 12... e4 {[%clk 0:02:53.8]} 13. Ng5 {[%clk 0:02:34.8]} 13... Bg6
{[%clk 0:02:50.2]} 14. Bc4 {[%clk 0:02:34.8]} 14... f6 {[%clk 0:02:39]} 15. Nf7
{[%clk 0:02:27.7]} 15... Bxf7 {[%clk 0:02:38.2]} 16. Bxf7 {[%clk 0:02:28.6]}
16... Nb6 {[%clk 0:02:35.8]} 17. c4 {[%clk 0:02:24.9]} 17... Kd7 {[%clk
0:02:23.2]} 18. d5 {[%clk 0:02:14.3]} 18... c5 {[%clk 0:02:18.6]} 19. Be6+
{[%clk 0:02:05.5]} 19... Kc7 {[%clk 0:02:18.6]} 20. Bf5 {[%clk 0:02:05.3]} 20...
Nxc4 {[%clk 0:02:14.9]} 21. Bxe4 {[%clk 0:01:57.4]} 21... Nxe3 {[%clk
0:02:14.9]} 22. fxe3 {[%clk 0:01:57.3]} 22... Re8 {[%clk 0:02:15.1]} 23. d6+
{[%clk 0:01:39.6]} 23... Bxd6 {[%clk 0:02:13.2]} 24. Bxb7 {[%clk 0:01:40.2]}
24... Rxe3 {[%clk 0:02:10.5]} 25. Bf3 {[%clk 0:01:40]} 25... Be5 {[%clk
0:02:07.9]} 26. Rd2 {[%clk 0:01:33.9]} 26... Bd4 {[%clk 0:02:05.5]} 27. Rhd1
{[%clk 0:01:30.6]} 27... a5 {[%clk 0:02:05.5]} 28. Rc2 {[%clk 0:01:29.2]} 28...
Kb6 {[%clk 0:02:05]} 29. Rcd2 {[%clk 0:01:22.9]} 29... Rhe8 {[%clk 0:02:04.1]}
30. Kc2 {[%clk 0:01:22.2]} 30... a4 {[%clk 0:02:02.4]} 31. Rd3 {[%clk
0:01:21.9]} 31... Rxd3 {[%clk 0:01:59.3]} 32. Kxd3 {[%clk 0:01:21.8]} 32... Bxb2
{[%clk 0:01:54.4]} 33. Kc4 {[%clk 0:01:22]} 33... Re7 {[%clk 0:01:34]} 34. Rd6+
{[%clk 0:01:16.3]} 34... Ka7 {[%clk 0:01:33.4]} 35. Kb5 {[%clk 0:01:14.2]} 35...
Kb8 {[%clk 0:01:24.9]} 36. Kb6 {[%clk 0:01:13.7]} 36... Re8 {[%clk 0:01:01.6]}
37. Bc6 {[%clk 0:01:12.6]} 37... Rf8 {[%clk 0:00:35.8]} 38. Rd7 {[%clk 0:01:04]}
38... Bd4 {[%clk 0:00:34.5]} 39. Bxa4 {[%clk 0:00:54.6]} 39... Kc8 {[%clk
0:00:22.5]} 40. Kc6 {[%clk 0:00:44.2]} 40... Re8 {[%clk 0:00:17.2]} 41. Bb3
{[%clk 0:00:39.6]} 41... f5 {[%clk 0:00:13.5]} 42. a4 {[%clk 0:00:34.2]} 42...
Rf8 {[%clk 0:00:13.7]} 43. Be6 {[%clk 0:00:22.1]} 43... Rf6 {[%clk 0:00:13]} 44.
Kd5 {[%clk 0:00:21.5]} 44... Kb8 {[%clk 0:00:11.8]} 45. a5 {[%clk 0:00:19.7]}
45... c4 {[%clk 0:00:12.2]} 46. Kxc4 {[%clk 0:00:11.6]} 46... Rxe6 {[%clk
0:00:12]} 47. Kxd4 {[%clk 0:00:11.9]} 47... Rg6 {[%clk 0:00:11.6]} 48. g3 {[%clk
0:00:11.2]} 48... Rg4+ {[%clk 0:00:11]} 49. Ke5 {[%clk 0:00:10.7]} 49... Rg5
{[%clk 0:00:10.7]} 50. Kf4 {[%clk 0:00:10.2]} 50... Rh5 {[%clk 0:00:11]} 51. h4
{[%clk 0:00:09.6]} 51... g6 {[%clk 0:00:11.2]} 52. Rg7 {[%clk 0:00:08.2]} 52...
Ka8 {[%clk 0:00:09.7]} 53. a6 {[%clk 0:00:07.9]} 53... Rh6 {[%clk 0:00:09.6]}
54. Kg5 {[%clk 0:00:07.1]} 54... Rh5+ {[%clk 0:00:09.7]} 55. Kf6 {[%clk
0:00:07.5]} 55... Rh6 {[%clk 0:00:08.2]} 56. a7 {[%clk 0:00:06.8]} 56... f4
{[%clk 0:00:06.4]} 57. gxf4 {[%clk 0:00:06.5]} 57... Rxh4 {[%clk 0:00:06.4]} 58.
Kg5 {[%clk 0:00:06.5]} 58... Rh5+ {[%clk 0:00:06.7]} 59. Kf6 {[%clk 0:00:06.7]}
59... Rf5+ {[%clk 0:00:06.2]} 60. Ke6 {[%clk 0:00:07]} 60... Rxf4 {[%clk
0:00:04.9]} 61. Rxh7 {[%clk 0:00:07.6]} 61... g5 {[%clk 0:00:05.3]} 62. Rg7
{[%clk 0:00:07.7]} 62... g4 {[%clk 0:00:05.6]} 63. Ke5 {[%clk 0:00:08]} 63...
Ra4 {[%clk 0:00:04.9]} 64. Kf5 {[%clk 0:00:08.1]} 64... Ra1 {[%clk 0:00:05]} 65.
Rxg4 {[%clk 0:00:07.2]} 65... Rxa7 {[%clk 0:00:04.9]} 66. Rg8+ {[%clk
0:00:06.8]} 66... Kb7 {[%clk 0:00:05.2]} 67. Rg7+ {[%clk 0:00:07.7]} 67... Ka6
{[%clk 0:00:06]} 68. Rxa7+ {[%clk 0:00:08.3]} 68... Kxa7 {[%clk 0:00:06.9]}
1/2-1/2

[Event "*** Titled Tuesday Blitz"]
[Site "Chess.com"]
[Date "2020.10.20"]
[Round "7"]
[White "scarabee43"]
[Black "Fins0905"]
[Result "1-0"]
[WhiteElo "2492"]
[BlackElo "2623"]
[TimeControl "180+1"]
[EndTime "11:21:09 PDT"]
[Termination "scarabee43 won on time"]

1. Nf3 {[%clk 0:03:00.9]} 1... d5 {[%clk 0:02:58.9]} 2. e3 {[%clk 0:03:00.4]}
2... Nf6 {[%clk 0:02:55.6]} 3. c4 {[%clk 0:03:00.7]} 3... c6 {[%clk 0:02:55.6]}
4. b3 {[%clk 0:02:58.2]} 4... Bf5 {[%clk 0:02:54.9]} 5. Bb2 {[%clk 0:02:56.3]}
5... e6 {[%clk 0:02:55.4]} 6. Nc3 {[%clk 0:02:56.2]} 6... h6 {[%clk 0:02:52.6]}
7. d4 {[%clk 0:02:53.8]} 7... Nbd7 {[%clk 0:02:52.3]} 8. Bd3 {[%clk 0:02:53.9]}
8... Bxd3 {[%clk 0:02:51.3]} 9. Qxd3 {[%clk 0:02:53.7]} 9... Be7 {[%clk
0:02:50.3]} 10. O-O {[%clk 0:02:53.6]} 10... O-O {[%clk 0:02:49.7]} 11. e4
{[%clk 0:02:52.1]} 11... dxe4 {[%clk 0:02:35.9]} 12. Nxe4 {[%clk 0:02:53]} 12...
Nxe4 {[%clk 0:02:35.4]} 13. Qxe4 {[%clk 0:02:53.7]} 13... Nf6 {[%clk 0:02:35.3]}
14. Qe2 {[%clk 0:02:52.3]} 14... a5 {[%clk 0:02:30.7]} 15. Rfd1 {[%clk
0:02:33.8]} 15... a4 {[%clk 0:02:29.7]} 16. Bc3 {[%clk 0:02:34.3]} 16... Re8
{[%clk 0:02:13.9]} 17. Ne5 {[%clk 0:02:32.3]} 17... Nd7 {[%clk 0:02:04.6]} 18.
Nd3 {[%clk 0:02:21.2]} 18... b5 {[%clk 0:01:48.6]} 19. Bb4 {[%clk 0:02:00.4]}
19... Bf6 {[%clk 0:01:37.2]} 20. Nc5 {[%clk 0:01:55.6]} 20... Nxc5 {[%clk
0:01:31.1]} 21. Bxc5 {[%clk 0:01:35.4]} 21... Qa5 {[%clk 0:01:03.3]} 22. Rac1
{[%clk 0:01:11.5]} 22... axb3 {[%clk 0:00:41.5]} 23. axb3 {[%clk 0:01:10.3]}
23... Qa2 {[%clk 0:00:40.6]} 24. Qf3 {[%clk 0:01:05.3]} 24... Rec8 {[%clk
0:00:30.4]} 25. cxb5 {[%clk 0:00:50.9]} 25... cxb5 {[%clk 0:00:28.4]} 26. d5
{[%clk 0:00:51.4]} 26... Bg5 {[%clk 0:00:16.5]} 27. Rc3 {[%clk 0:00:46.5]} 27...
exd5 {[%clk 0:00:12.1]} 28. h4 {[%clk 0:00:28.3]} 28... Bf6 {[%clk 0:00:10.5]}
29. Rcc1 {[%clk 0:00:23.9]} 29... Bxh4 {[%clk 0:00:05.4]} 30. Rxd5 {[%clk
0:00:20.6]} 30... Bg5 {[%clk 0:00:04.5]} 31. Rcd1 {[%clk 0:00:20.2]} 31... Qc2
{[%clk 0:00:04.4]} 32. b4 {[%clk 0:00:20]} 32... Qg6 {[%clk 0:00:03.3]} 33. Rd7
{[%clk 0:00:19.8]} 33... Bf6 {[%clk 0:00:03.6]} 34. g3 {[%clk 0:00:18.9]} 34...
Kh7 {[%clk 0:00:03]} 35. Kg2 {[%clk 0:00:18.7]} 35... Rab8 {[%clk 0:00:03.5]}
36. Qd5 {[%clk 0:00:18.5]} 36... Qg5 {[%clk 0:00:03.7]} 37. Qxg5 {[%clk
0:00:18.2]} 37... hxg5 {[%clk 0:00:03.5]} 38. Rxf7 {[%clk 0:00:18.9]} 38... Kg6
{[%clk 0:00:03.9]} 39. Rdd7 {[%clk 0:00:18.6]} 39... Re8 {[%clk 0:00:04.2]} 40.
Ra7 {[%clk 0:00:16.4]} 40... g4 {[%clk 0:00:04.4]} 41. Rfb7 {[%clk 0:00:16.6]}
41... Rec8 {[%clk 0:00:03.7]} 42. Rxb8 {[%clk 0:00:14.8]} 42... Rxb8 {[%clk
0:00:04.6]} 43. f3 {[%clk 0:00:14.4]} 43... Kf5 {[%clk 0:00:04.5]} 44. fxg4+
{[%clk 0:00:13.9]} 44... Kxg4 {[%clk 0:00:05.4]} 45. Ra3 {[%clk 0:00:12.8]}
45... Re8 {[%clk 0:00:05.2]} 46. Ra5 {[%clk 0:00:12.2]} 46... Re2+ {[%clk
0:00:04.9]} 47. Kf1 {[%clk 0:00:12.7]} 47... Rb2 {[%clk 0:00:04.6]} 48. Rxb5
{[%clk 0:00:12.3]} 48... Kf3 {[%clk 0:00:05.2]} 49. Ke1 {[%clk 0:00:12.2]} 49...
Bg5 {[%clk 0:00:05.6]} 50. Kd1 {[%clk 0:00:08]} 50... Rd2+ {[%clk 0:00:05]} 51.
Kc1 {[%clk 0:00:08.3]} 51... Kxg3 {[%clk 0:00:04.4]} 52. Kb1 {[%clk 0:00:08.9]}
52... Rd5 {[%clk 0:00:03.8]} 53. Rb7 {[%clk 0:00:09]} 53... g6 {[%clk
0:00:03.6]} 54. Rg7 {[%clk 0:00:09.2]} 54... Kg4 {[%clk 0:00:03.1]} 55. Rxg6
{[%clk 0:00:09.5]} 55... Kf5 {[%clk 0:00:04]} 56. Rb6 {[%clk 0:00:09]} 56... Ke4
{[%clk 0:00:03.7]} 57. Kc2 {[%clk 0:00:09.5]} 57... Bf4 {[%clk 0:00:03.7]} 58.
Re6+ {[%clk 0:00:09.8]} 58... Kf5 {[%clk 0:00:03.5]} 59. Re1 {[%clk 0:00:09.2]}
59... Be5 {[%clk 0:00:03.6]} 60. Kb3 {[%clk 0:00:09.4]} 60... Ke6 {[%clk
0:00:03.7]} 61. Kc4 {[%clk 0:00:09.7]} 61... Rd2 {[%clk 0:00:02.9]} 62. b5
{[%clk 0:00:09.2]} 62... Rc2+ {[%clk 0:00:03.2]} 63. Kb4 {[%clk 0:00:07.5]}
63... Kd5 {[%clk 0:00:02.2]} 64. Rd1+ {[%clk 0:00:07.3]} 64... Ke6 {[%clk
0:00:02.7]} 65. b6 {[%clk 0:00:07.6]} 65... Bf4 {[%clk 0:00:01.9]} 66. Kb5
{[%clk 0:00:07.3]} 66... Bg3 {[%clk 0:00:01.3]} 67. Kc6 {[%clk 0:00:07.4]} 67...
Bf2 {[%clk 0:00:01.2]} 68. Rd5 {[%clk 0:00:07]} 1-0